bitfinex/quotes_BTCUSD_20250324
["timestamp","ask_amount","ask_price","bid_price","bid_amount"]
[1742819446263,0.28941881,87493.0,87492.0,0.7002895]
[1742819446462,0.28941881,87493.0,87492.0,0.6942895]
[1742819446926,0.28941881,87493.0,87492.0,0.6992895]
[1742819447146,0.28941881,87493.0,87492.0,0.6942895]
[1742819447540,0.28941881,87493.0,87492.0,0.6882895]
[1742819447722,0.36491881,87493.0,87492.0,0.6900895]
[1742819447945,0.66491881,87493.0,87492.0,0.5502095]
[1742819448146,0.66491881,87493.0,87492.0,0.6945295]
[1742819448307,0.66491881,87493.0,87492.0,0.6905295]
[1742819448732,0.67645161,87493.0,87492.0,0.6925295]
[1742819449246,0.67645161,87493.0,87492.0,0.6905295]
[1742819449667,0.67645161,87493.0,87492.0,0.6885295]
[1742819450096,0.67645161,87493.0,87492.0,0.6895295]
[1742819450514,0.67645161,87493.0,87492.0,0.6905295]
[1742819450719,0.67645161,87493.0,87492.0,0.5462095]
[1742819450937,0.67645161,87493.0,87492.0,0.5452095]
[1742819451148,0.67645161,87493.0,87492.0,0.5442095]
[1742819451532,0.96821961,87493.0,87492.0,0.0001695]
[1742819452063,0.540067,87475.0,87474.0,0.54384]
[1742819452308,0.617867,87475.0,87474.0,0.68768]
[1742819452894,0.63576744,87475.0,87474.0,0.6876]
[1742819453290,0.68296744,87475.0,87474.0,0.6876]
[1742819454298,0.68296744,87475.0,87474.0,0.6886]
[1742819454496,0.68296744,87475.0,87474.0,0.6906]
[1742819454699,1.31755244,87475.0,87474.0,0.54684]
[1742819454899,1.23484329,87475.0,87474.0,0.003]
[1742819455328,1.2434862,87475.0,87474.0,0.003]
[1742819455509,1.2434862,87475.0,87474.0,0.001]
[1742819455886,0.240089,87467.0,87466.0,0.14344]
[1742819456634,0.540103,87462.0,87461.0,0.0001696]
[1742819456836,0.540103,87462.0,87461.0,0.1434096]
[1742819457372,0.55800536,87462.0,87461.0,0.1434096]
[1742819457575,0.55800536,87462.0,87461.0,0.0001696]
[1742819457927,0.63780536,87462.0,87461.0,0.14329081]
[1742819458568,0.63780536,87462.0,87461.0,0.14629081]
[1742819458935,0.63780536,87462.0,87461.0,0.14329081]
[1742819459142,0.63780536,87462.0,87461.0,0.14629081]
[1742819459391,0.63780536,87462.0,87461.0,0.14329081]
[1742819460707,0.63780536,87462.0,87461.0,0.14429081]
[1742819461544,0.63780536,87462.0,87461.0,0.14389081]
[1742819468660,0.63780536,87462.0,87461.0,8.1e-07]
[1742819468661,4.75571936,87462.0,87461.0,8.1e-07]
[1742819468863,0.540152,87444.0,87443.0,0.0001696]
[1742819469013,0.540152,87444.0,87443.0,0.00058186]
[1742819469765,0.55805883,87444.0,87443.0,0.00058186]
[1742819469998,0.60635883,87444.0,87443.0,0.00058186]
[1742819470411,0.92916883,87444.0,87443.0,0.00058186]
[1742819470589,0.93016883,87444.0,87443.0,0.00058186]
[1742819471136,0.61881362,87444.0,87443.0,0.00058186]
[1742819471347,0.57051362,87444.0,87443.0,0.00058186]
[1742819473422,1.55470262,87444.0,87443.0,0.00058186]
[1742819473620,1.54145262,87444.0,87443.0,0.00058186]
[1742819473831,1.30132662,87444.0,87443.0,0.00058186]
[1742819474029,1.28930762,87444.0,87443.0,0.00058186]
[1742819474267,0.85227162,87444.0,87443.0,0.00058186]
[1742819475504,0.64931362,87444.0,87443.0,0.00058186]
[1742819475936,0.65796938,87444.0,87443.0,0.00058186]
[1742819476147,0.84971338,87444.0,87443.0,0.00058186]
[1742819476364,0.79483338,87444.0,87443.0,0.00058186]
[1742819476765,0.65796938,87444.0,87443.0,0.00058186]
[1742819477316,0.81777638,87444.0,87443.0,0.00058186]
[1742819479179,0.86457638,87444.0,87443.0,0.00058186]
[1742819482452,0.228743,87434.0,87431.0,0.002]
[1742819482658,0.540186,87432.0,87431.0,0.002]
[1742819483263,0.55809609,87432.0,87431.0,0.002]
[1742819487381,0.55809609,87432.0,87431.0,0.0021696]
[1742819490583,0.55809609,87432.0,87431.0,0.1442496]
[1742819495600,0.011437,87435.0,87431.0,0.1442496]
[1742819495601,0.228743,87435.0,87432.0,0.228747]
[1742819495806,0.228743,87435.0,87431.0,0.1442496]
[1742819495951,0.528748,87433.0,87431.0,0.1442496]
[1742819496163,0.228749,87432.0,87431.0,0.1442496]
[1742819496579,0.528749,87432.0,87431.0,0.1442496]
[1742819497574,0.3,87432.0,87431.0,0.3730006]
[1742819497785,60.0,87792.0,87431.0,0.3730006]
[1742819497786,0.0118668,87444.0,87431.0,0.1442496]
[1742819497983,0.0118668,87444.0,87443.0,0.31012]
[1742819498365,0.0118668,87444.0,87443.0,0.0814]
[1742819498559,0.5405838,87444.0,87443.0,0.0814]
[1742819498764,0.5405838,87444.0,87443.0,0.22236]
[1742819499066,0.3118668,87444.0,87443.0,0.0814]
[1742819499297,0.3118668,87444.0,87443.0,0.22228]
[1742819499544,0.3148668,87444.0,87443.0,0.22228]
[1742819500353,0.5405838,87444.0,87443.0,0.22228]
[1742819500560,0.3128668,87444.0,87443.0,0.22328]
[1742819500762,0.3118668,87444.0,87443.0,0.22328]
[1742819500979,0.3118668,87444.0,87443.0,0.22428]
[1742819501307,0.3118668,87444.0,87443.0,0.453]
[1742819501507,0.3118668,87444.0,87443.0,0.464436]
[1742819501508,0.00041201,87444.0,87443.0,0.464436]
[1742819501931,0.00041201,87444.0,87443.0,0.52947685]
[1742819502159,0.00041201,87444.0,87443.0,0.56513752]
[1742819502497,0.0003392,87461.0,87460.0,0.37374285]
[1742819502708,0.0003392,87461.0,87460.0,1.05866285]
[1742819502939,0.00042397,87461.0,87460.0,1.044122]
[1742819503146,0.00042397,87461.0,87460.0,0.903562]
[1742819503348,0.00042397,87461.0,87460.0,1.044042]
[1742819503902,0.00042397,87461.0,87460.0,1.048042]
[1742819504117,0.00042397,87461.0,87460.0,1.051042]
[1742819504322,0.00042397,87461.0,87460.0,1.07418323]
[1742819505568,0.00042397,87461.0,87460.0,1.49208323]
[1742819512519,0.00042397,87461.0,87460.0,1.49225283]
[1742819520111,0.00042397,87461.0,87460.0,1.50679368]
[1742819521511,0.00042397,87461.0,87460.0,1.49979368]
[1742819521859,0.00042397,87461.0,87460.0,1.50579368]
[1742819522407,0.00042397,87461.0,87460.0,1.51079368]
[1742819524824,0.00042397,87461.0,87460.0,1.50839368]
[1742819531272,0.00042397,87461.0,87460.0,1.37031368]
[1742819531401,0.00042397,87461.0,87460.0,1.50783368]
[1742819531923,0.00042397,87461.0,87460.0,1.50779368]
[1742819534938,0.00042397,87461.0,87460.0,1.35577283]
[1742819535141,0.00042397,87461.0,87460.0,1.43956583]
[1742819535314,0.00042397,87461.0,87460.0,1.45099883]
[1742819536221,0.00042397,87461.0,87460.0,1.44499883]
[1742819536419,0.00042397,87461.0,87460.0,1.35548583]
[1742819536573,0.00042397,87461.0,87460.0,1.35948583]
[1742819536991,0.00042397,87461.0,87460.0,1.37091883]
[1742819543132,0.00042397,87461.0,87460.0,1.37027883]
[1742819544199,0.00042397,87461.0,87460.0,1.46571968]
[1742819544599,0.00042397,87461.0,87460.0,1.51531968]
[1742819545158,0.00042397,87461.0,87460.0,1.51131968]
[1742819545587,0.00042397,87461.0,87460.0,1.51331968]
[1742819545726,0.00042397,87461.0,87460.0,1.51831968]
[1742819545931,0.00042397,87461.0,87460.0,1.51811968]
[1742819546367,0.00042397,87461.0,87460.0,1.55384504]
[1742819546944,0.228631,87477.0,87474.0,0.228636]
[1742819547151,0.23198204,87478.0,87475.0,0.364914]
[1742819547353,0.228629,87478.0,87475.0,0.364914]
[1742819547796,0.228629,87478.0,87476.0,0.228633]
[1742819548011,0.311431,87479.0,87476.0,0.228633]
[1742819548012,0.540057,87479.0,87476.0,0.228633]
[1742819548236,0.228629,87478.0,87475.0,0.364916]
[1742819548448,0.228633,87477.0,87475.0,0.13828]
[1742819548576,0.228633,87477.0,87475.0,0.13628]
[1742819548983,0.228633,87477.0,87476.0,0.004]
[1742819549215,0.240064,87477.0,87476.0,0.004]
[1742819549414,0.240064,87477.0,87476.0,0.002]
[1742819549582,0.665064,87477.0,87476.0,0.002]
[1742819549780,1.674544,87477.0,87476.0,0.002]
[1742819550004,0.540106,87461.0,87460.0,0.0001696]
[1742819550206,0.667806,87461.0,87460.0,0.13633228]
[1742819550890,1.37205651,87461.0,87460.0,0.13633228]
[1742819551956,1.37205651,87461.0,87460.0,0.00029228]
[1742819553720,1.30808751,87461.0,87460.0,0.00029228]
[1742819555742,1.25111751,87461.0,87460.0,0.00029228]
[1742819556280,1.233214,87461.0,87460.0,0.00029228]
[1742819556824,1.220645,87461.0,87460.0,0.00029228]
[1742819557646,1.161058,87461.0,87460.0,0.00029228]
[1742819559364,1.17896209,87461.0,87460.0,0.00029228]
[1742819561175,0.68571009,87461.0,87460.0,0.00029228]
[1742819561646,1.28540509,87461.0,87460.0,0.00029228]
[1742819562854,0.97057509,87461.0,87460.0,0.00029228]
[1742819566618,0.540128,87453.0,87452.0,0.679]
[1742819566822,1.153057,87453.0,87452.0,0.67908477]
[1742819567246,0.540128,87453.0,87452.0,0.67908477]
[1742819567446,0.54855401,87453.0,87452.0,0.67908477]
[1742819567858,0.54855401,87453.0,87452.0,0.68008477]
[1742819568186,0.54855401,87453.0,87452.0,0.68108477]
[1742819570072,0.528694,87453.0,87452.0,0.68108477]
[1742819570281,0.011432,87467.0,87452.0,0.76018477]
[1742819570490,0.228691,87455.0,87452.0,0.76018477]
[1742819571128,0.228691,87455.0,87452.0,0.75918477]
[1742819571442,0.228693,87454.0,87452.0,0.75818477]
[1742819571644,0.240128,87453.0,87452.0,0.67925437]
[1742819574373,0.240128,87453.0,87452.0,0.68025437]
[1742819574788,0.240128,87453.0,87452.0,0.68125437]
[1742819575839,0.228693,87454.0,87452.0,0.68125437]
[1742819576077,0.22867,87463.0,87452.0,0.68125437]
[1742819576078,0.01790374,87470.0,87458.0,0.228678]
[1742819576294,0.3003392,87460.0,87459.0,0.310478]
[1742819576486,0.0003392,87460.0,87459.0,0.367911]
[1742819576927,0.0003392,87460.0,87459.0,0.502151]
[1742819578106,0.0013392,87460.0,87459.0,0.502151]
[1742819578522,0.0003392,87460.0,87459.0,0.502151]
[1742819578748,0.0003392,87460.0,87459.0,0.507151]
[1742819580062,0.0003392,87460.0,87459.0,0.513151]
[1742819580426,0.0003392,87460.0,87459.0,0.53566727]
[1742819581394,0.0003392,87460.0,87459.0,0.52423427]
[1742819581666,0.0003392,87460.0,87459.0,0.53566727]
[1742819582060,0.0003392,87460.0,87459.0,0.40142727]
[1742819582250,0.0003392,87460.0,87459.0,0.53526727]
[1742819584509,0.0003392,87460.0,87459.0,0.29532587]
[1742819584668,0.0003392,87460.0,87459.0,0.53543687]
[1742819590370,0.0003392,87460.0,87459.0,1.07955687]
[1742819591388,0.0003392,87460.0,87459.0,0.94571687]
[1742819591586,0.0003392,87460.0,87459.0,1.07899687]
[1742819593449,0.0003392,87460.0,87459.0,0.83888587]
[1742819595199,0.0003392,87460.0,87459.0,1.06756387]
[1742819595406,0.0003392,87460.0,87459.0,1.51143772]
[1742819598587,0.0003392,87460.0,87459.0,1.52597826]
[1742819599204,0.0003392,87460.0,87459.0,1.51143772]
[1742819599384,0.26066717,87477.0,87475.0,0.0819]
[1742819599583,0.26066717,87477.0,87476.0,0.133]
[1742819600135,0.48929817,87477.0,87476.0,0.67708]
[1742819601013,0.26066717,87477.0,87476.0,0.67808]
[1742819601240,0.011428,87498.0,87487.0,0.01143]
[1742819601412,0.011428,87498.0,87488.0,0.361602]
[1742819601413,0.02004307,87497.0,87488.0,0.361602]
[1742819601620,0.228593,87492.0,87489.0,0.228597]
[1742819601826,0.228594,87491.0,87490.0,0.133]
[1742819602394,0.240023,87491.0,87490.0,0.133]
[1742819602612,0.24009844,87491.0,87490.0,0.133]
[1742819603518,7.544e-05,87491.0,87490.0,0.499926]
[1742819603718,7.544e-05,87491.0,87490.0,0.51446685]
[1742819605929,7.544e-05,87491.0,87490.0,0.51546685]
[1742819606319,7.544e-05,87491.0,87490.0,0.51646685]
[1742819607096,7.544e-05,87491.0,87490.0,0.51446685]
[1742819607497,7.544e-05,87491.0,87490.0,0.51646685]
[1742819607917,0.00041464,87491.0,87490.0,0.51646685]
[1742819608120,0.00041464,87491.0,87490.0,0.93436685]
[1742819610874,6.4e-07,87491.0,87490.0,1.23936685]
[1742819611715,6.4e-07,87491.0,87490.0,1.26436685]
[1742819612118,6.4e-07,87491.0,87490.0,1.26336685]
[1742819612323,6.4e-07,87491.0,87490.0,1.29887878]
[1742819612522,6.4e-07,87491.0,87490.0,1.26336685]
[1742819612732,6.4e-07,87491.0,87490.0,1.29887552]
[1742819612949,6.4e-07,87491.0,87490.0,1.26336685]
[1742819613117,6.4e-07,87491.0,87490.0,1.26236685]
[1742819613333,6.4e-07,87491.0,87490.0,1.26836685]
[1742819613534,6.4e-07,87491.0,87490.0,1.30986136]
[1742819613716,6.4e-07,87491.0,87490.0,1.30386136]
[1742819613917,0.0003394,87515.0,87490.0,1.30386136]
[1742819613918,0.0003394,87515.0,87514.0,0.011426]
[1742819614160,0.00041954,87515.0,87514.0,1.41685855]
[1742819615804,0.00041954,87515.0,87514.0,1.41985855]
[1742819616861,0.00041954,87515.0,87514.0,1.42285855]
[1742819618019,0.00041954,87515.0,87514.0,1.4373994]
[1742819620454,0.00041954,87515.0,87514.0,1.4369194]
[1742819620606,0.00041954,87515.0,87514.0,1.3553594]
[1742819622355,0.24037754,87515.0,87514.0,0.96781855]
[1742819622579,0.24037754,87515.0,87514.0,1.10077855]
[1742819622803,0.24037754,87515.0,87514.0,0.68288]
[1742819623569,0.24037754,87515.0,87514.0,0.67988]
[1742819623766,0.24037754,87515.0,87514.0,0.67688]
[1742819624168,0.24037754,87515.0,87514.0,0.67788]
[1742819624527,0.24037754,87515.0,87514.0,0.54492]
[1742819624673,0.24037754,87515.0,87514.0,0.67788]
[1742819625075,0.24037754,87515.0,87514.0,0.67888]
[1742819625277,0.62237754,87515.0,87514.0,0.67888]
[1742819626372,0.62237754,87515.0,87514.0,0.67688]
[1742819626858,0.62237754,87515.0,87514.0,0.67888]
[1742819627899,0.62237754,87515.0,87514.0,0.54592]
[1742819628104,1.35065654,87515.0,87514.0,0.002]
[1742819628348,1.03207654,87515.0,87514.0,0.002]
[1742819628538,1.03207654,87515.0,87514.0,0.001]
[1742819628915,1.03207654,87515.0,87514.0,0.002]
[1742819629128,0.96141454,87515.0,87514.0,0.002]
[1742819629325,0.96141454,87515.0,87514.0,0.001]
[1742819629689,0.239988,87504.0,87503.0,0.13304]
[1742819630248,0.539988,87504.0,87503.0,0.13304]
[1742819634068,0.228587,87494.0,87491.0,0.2057625]
[1742819634289,0.228589,87493.0,87492.0,0.54388]
[1742819634674,0.228587,87494.0,87492.0,0.54388]
[1742819634877,0.228589,87493.0,87492.0,0.54388]
[1742819635090,0.228587,87494.0,87492.0,0.772471]
[1742819635291,0.228587,87494.0,87492.0,0.67684]
[1742819636680,0.228587,87494.0,87492.0,0.67884]
[1742819636859,0.228587,87494.0,87492.0,0.68084]
[1742819637082,0.228587,87494.0,87492.0,0.67884]
[1742819637380,0.228587,87494.0,87492.0,0.909431]
[1742819637535,0.228587,87494.0,87492.0,0.68084]
[1742819637960,0.240011,87496.0,87492.0,0.909432]
[1742819638127,0.011429,87496.0,87492.0,0.909432]
[1742819638332,0.342758,87526.0,87496.0,0.011429]
[1742819638533,0.0003392,87530.0,87502.0,0.228564]
[1742819638534,0.24282057,87506.0,87502.0,0.228564]
[1742819638831,0.24281657,87506.0,87503.0,0.228563]
[1742819639041,0.01426057,87506.0,87504.0,0.36152]
[1742819639450,0.22855,87509.0,87504.0,0.36152]
[1742819639690,0.228551,87508.0,87505.0,0.228556]
[1742819640272,0.228551,87508.0,87506.0,0.228555]
[1742819640532,0.228546,87510.0,87507.0,0.22855]
[1742819640708,0.239961,87514.0,87507.0,0.011427]
[1742819640709,0.01463034,87512.0,87507.0,0.011427]
[1742819641019,0.22854,87512.0,87509.0,0.228545]
[1742819641182,0.228542,87511.0,87508.0,0.228545]
[1742819641387,0.24038454,87515.0,87513.0,0.239962]
[1742819641388,0.00041954,87515.0,87513.0,0.239962]
[1742819641627,0.00041954,87515.0,87514.0,0.23996]
[1742819643078,0.00041954,87515.0,87514.0,0.228534]
[1742819643288,0.00041954,87515.0,87514.0,0.23996]
[1742819643911,0.00041954,87515.0,87514.0,0.228534]
[1742819647281,0.00041954,87515.0,87514.0,0.772374]
[1742819648053,0.00041954,87515.0,87514.0,0.7838]
[1742819648643,0.00041954,87515.0,87514.0,0.8306]
[1742819652916,0.00041954,87515.0,87514.0,0.96356]
[1742819654127,0.44297013,87523.0,87520.0,0.228517]
[1742819654339,0.228514,87522.0,87520.0,0.228517]
[1742819654540,0.24300626,87523.0,87521.0,0.228516]
[1742819654945,0.228513,87522.0,87520.0,0.228517]
[1742819655354,0.228519,87520.0,87517.0,0.228524]
[1742819655553,0.228518,87521.0,87519.0,0.228521]
[1742819655752,0.228518,87521.0,87518.0,0.228523]
[1742819655977,0.228514,87522.0,87519.0,0.228519]
[1742819656178,0.3,87521.0,87519.0,0.228519]
[1742819656576,0.3,87521.0,87520.0,0.228519]
[1742819656999,0.3,87521.0,87519.0,0.22852]
[1742819657238,0.31449426,87523.0,87520.0,0.228519]
[1742819657395,0.31449426,87523.0,87521.0,0.228515]
[1742819657593,0.54300526,87523.0,87521.0,0.228515]
[1742819657943,0.24300526,87523.0,87521.0,0.228515]
[1742819658152,0.3,87522.0,87521.0,0.228515]
[1742819658501,0.5288532,87522.0,87518.0,0.228524]
[1742819658709,0.228518,87521.0,87518.0,0.228524]
[1742819659111,0.5288542,87522.0,87520.0,0.228519]
[1742819659311,0.0003392,87522.0,87521.0,0.228516]
[1742819659728,0.0003392,87522.0,87517.0,0.228526]
[1742819659942,0.0003392,87522.0,87520.0,0.228518]
[1742819660144,0.0003392,87522.0,87521.0,0.228516]
[1742819660562,0.0003392,87522.0,87521.0,0.239941]
[1742819661657,0.0003392,87522.0,87521.0,0.783741]
[1742819663242,0.0003392,87522.0,87521.0,0.859741]
[1742819667513,0.0003392,87522.0,87521.0,0.906641]
[1742819669214,0.0003392,87522.0,87521.0,0.907641]
[1742819669426,0.0003392,87522.0,87521.0,0.92218185]
[1742819669632,0.0003392,87522.0,87521.0,0.92318185]
[1742819670006,0.0003392,87522.0,87521.0,0.92118185]
[1742819670209,0.0003392,87522.0,87521.0,0.92518185]
[1742819670328,0.0003392,87522.0,87521.0,0.93018185]
[1742819670524,0.0003392,87522.0,87521.0,0.92818185]
[1742819670727,0.0003392,87522.0,87521.0,0.93218185]
[1742819672119,0.0003392,87522.0,87521.0,0.93018185]
[1742819672335,0.0003392,87522.0,87521.0,0.93418185]
[1742819673078,0.0003392,87522.0,87521.0,1.04843949]
[1742819673280,0.0003392,87522.0,87521.0,1.08408335]
[1742819673658,0.0003392,87522.0,87521.0,1.04843949]
[1742819673863,0.0003392,87522.0,87521.0,1.08407627]
[1742819674492,0.0003392,87522.0,87521.0,1.03389864]
[1742819675955,0.0003392,87522.0,87521.0,1.08407951]
[1742819676122,0.0003392,87522.0,87521.0,1.04843949]
[1742819676830,0.0003392,87522.0,87521.0,1.08407671]
[1742819677226,0.0003392,87522.0,87521.0,1.04843949]
[1742819677634,0.0003392,87522.0,87521.0,1.08407321]
[1742819678056,0.0003392,87522.0,87521.0,1.06953236]
[1742819678464,0.0003392,87522.0,87521.0,1.21699321]
[1742819683762,0.0003392,87522.0,87521.0,1.21716281]
[1742819684294,0.0003392,87522.0,87521.0,1.07924281]
[1742819684498,0.0003392,87522.0,87521.0,1.11536824]
[1742819687564,0.0003392,87522.0,87521.0,1.12990909]
[1742819687732,0.0003392,87522.0,87521.0,1.18210909]
[1742819687936,0.0003392,87522.0,87521.0,1.2177332]
[1742819690036,0.0003392,87522.0,87521.0,1.17710909]
[1742819691450,0.0003392,87522.0,87521.0,1.2127426]
[1742819691669,0.0003392,87522.0,87521.0,1.17710909]
[1742819693309,0.0003392,87522.0,87521.0,1.21274981]
[1742819694133,0.0003392,87522.0,87521.0,1.17710909]
[1742819695057,0.0003392,87522.0,87521.0,1.21276508]
[1742819695275,0.0003392,87522.0,87521.0,1.17710909]
[1742819695483,0.0003392,87522.0,87521.0,1.21277363]
[1742819696860,0.0003392,87522.0,87521.0,1.07957363]
[1742819697061,0.0003392,87522.0,87521.0,1.21245363]
[1742819700597,0.0003392,87522.0,87521.0,1.07957363]
[1742819700800,0.0003392,87522.0,87521.0,1.21245363]
[1742819702472,0.0003392,87522.0,87521.0,1.07957363]
[1742819702725,0.0003392,87522.0,87521.0,1.21245363]
[1742819703754,0.0003392,87522.0,87521.0,0.94183278]
[1742819703944,0.0003392,87522.0,87521.0,1.07471278]
[1742819704937,0.0003392,87522.0,87521.0,0.94183278]
[1742819705131,0.0003392,87522.0,87521.0,1.07471278]
[1742819705551,0.0003392,87522.0,87521.0,1.03904824]
[1742819712904,0.61208189,87522.0,87521.0,0.66622724]
[1742819713129,0.6657772,87522.0,87521.0,0.79910724]
[1742819713358,0.6657772,87522.0,87521.0,0.66622724]
[1742819713564,1.0961602,87522.0,87521.0,0.5519696]
[1742819713764,0.9540282,87522.0,87521.0,0.5519696]
[1742819713895,0.9540282,87522.0,87521.0,0.0081696]
[1742819713896,1.06828584,87522.0,87521.0,0.0081696]
[1742819714101,1.06828584,87522.0,87521.0,0.0001696]
[1742819716310,0.91448284,87522.0,87521.0,0.0001696]
[1742819717205,0.78003484,87522.0,87521.0,0.0001696]
[1742819717429,0.4258392,87522.0,87521.0,0.11442724]
[1742819717616,0.3013392,87522.0,87521.0,0.34294324]
[1742819717748,0.2298522,87522.0,87521.0,0.11442724]
[1742819717953,0.2412772,87522.0,87521.0,0.11442724]
[1742819718367,0.5402772,87522.0,87521.0,0.11442724]
[1742819719213,0.65453484,87522.0,87521.0,0.11442724]
[1742819721834,0.5402772,87522.0,87521.0,0.11442724]
[1742819726748,0.5402772,87522.0,87521.0,0.24734724]
[1742819728395,0.0003392,87522.0,87521.0,0.24734724]
[1742819728532,0.0003392,87522.0,87521.0,0.48728824]
[1742819729151,0.0003392,87522.0,87521.0,0.47586324]
[1742819729392,0.0003392,87522.0,87521.0,0.48728824]
[1742819729869,0.0003392,87522.0,87521.0,0.49228824]
[1742819731212,0.0003392,87522.0,87521.0,0.56878824]
[1742819731584,0.0003392,87522.0,87521.0,0.98668824]
[1742819732213,0.0003392,87522.0,87521.0,0.98468824]
[1742819732387,0.0003392,87522.0,87521.0,0.98168824]
[1742819732589,0.0003392,87522.0,87521.0,0.98468824]
[1742819732798,0.0003392,87522.0,87521.0,1.01100394]
[1742819733002,0.0003392,87522.0,87521.0,1.00800394]
[1742819733225,0.0003392,87522.0,87521.0,1.01000394]
[1742819733613,0.0003392,87522.0,87521.0,1.01600394]
[1742819736599,0.0003392,87522.0,87521.0,0.59810394]
[1742819745752,0.0003392,87522.0,87521.0,0.59806394]
[1742819748896,0.0003392,87522.0,87521.0,0.61760479]
[1742819749426,0.0003392,87522.0,87521.0,0.66640479]
[1742819749816,0.0003392,87522.0,87521.0,0.66040479]
[1742819749994,0.0003392,87522.0,87521.0,0.66640479]
[1742819750236,0.0003392,87522.0,87521.0,0.66140479]
[1742819750469,0.0003392,87522.0,87521.0,0.66740479]
[1742819750646,0.0003392,87522.0,87521.0,0.70300621]
[1742819751444,0.0003392,87522.0,87521.0,0.69700621]
[1742819751613,0.0003392,87522.0,87521.0,0.70300621]
[1742819753304,0.0003392,87522.0,87521.0,0.69800621]
[1742819753710,0.0003392,87522.0,87521.0,0.66740479]
[1742819754534,0.0003392,87522.0,87521.0,0.70302228]
[1742819754733,0.0003392,87522.0,87521.0,0.66740479]
[1742819755141,0.0003392,87522.0,87521.0,0.70302456]
[1742819755543,0.0003392,87522.0,87521.0,0.66740479]
[1742819755832,0.0003392,87522.0,87521.0,0.70302418]
[1742819756104,0.05311788,87531.0,87530.0,0.239917]
[1742819756253,0.05311788,87531.0,87530.0,0.35417464]
[1742819756465,0.05311788,87531.0,87530.0,0.48705464]
[1742819757669,0.05311788,87531.0,87530.0,1.03569464]
[1742819758590,0.05319323,87531.0,87530.0,1.04169464]
[1742819759322,0.05319323,87531.0,87530.0,1.11979464]
[1742819759525,0.0003392,87540.0,87539.0,0.364892]
[1742819759787,0.00075141,87540.0,87539.0,0.47914964]
[1742819759993,0.00075141,87540.0,87539.0,0.49229431]
[1742819760430,0.00075141,87540.0,87539.0,0.47914964]
[1742819760827,0.00075141,87540.0,87539.0,0.43224964]
[1742819761190,0.00075141,87540.0,87539.0,0.43524964]
[1742819761387,0.00075141,87540.0,87539.0,0.35714964]
[1742819761616,0.00075141,87540.0,87539.0,0.48998964]
[1742819762424,0.00075141,87540.0,87539.0,0.49598964]
[1742819762681,0.00075141,87540.0,87539.0,0.48698964]
[1742819762882,0.00075141,87540.0,87539.0,0.49198964]
[1742819763677,0.00075141,87540.0,87539.0,0.48698964]
[1742819764056,0.00075141,87540.0,87539.0,0.49098964]
[1742819764471,0.00075141,87540.0,87539.0,0.48698964]
[1742819764754,0.00075141,87540.0,87539.0,0.49098964]
[1742819765156,0.00075141,87540.0,87539.0,0.49498964]
[1742819766463,0.00075141,87540.0,87539.0,0.36214964]
[1742819766691,0.00075141,87540.0,87539.0,0.49498964]
[1742819767325,0.00075141,87540.0,87539.0,0.36214964]
[1742819767501,0.00075141,87540.0,87539.0,0.49498964]
[1742819768294,0.00075141,87540.0,87539.0,0.12225764]
[1742819768496,0.24064041,87540.0,87539.0,0.25509764]
[1742819769593,0.24064041,87540.0,87539.0,0.25109764]
[1742819770006,0.24064041,87540.0,87539.0,0.25409764]
[1742819771090,0.00075141,87540.0,87539.0,0.25409764]
[1742819771300,0.00075141,87540.0,87539.0,0.49398964]
[1742819771501,0.00075141,87540.0,87539.0,0.36114964]
[1742819771705,0.00075141,87540.0,87539.0,0.48998964]
[1742819771934,0.00075141,87540.0,87539.0,0.49298964]
[1742819772539,0.00075141,87540.0,87539.0,0.25309764]
[1742819773015,0.00075141,87540.0,87539.0,0.48156664]
[1742819773387,0.00075141,87540.0,87539.0,0.25309764]
[1742819773804,0.22921741,87540.0,87539.0,0.25309764]
[1742819774006,0.24064041,87540.0,87539.0,0.25309764]
[1742819774211,0.24064041,87540.0,87539.0,0.006]
[1742819774212,0.66436975,87540.0,87539.0,0.006]
[1742819774413,0.74756975,87540.0,87539.0,0.006]
[1742819774736,1.05982217,87540.0,87539.0,0.006]
[1742819775471,0.77422267,87540.0,87539.0,0.003]
[1742819775673,2.43222367,87540.0,87539.0,0.003]
[1742819775911,2.19222367,87540.0,87539.0,0.003]
[1742819776135,2.19222367,87540.0,87531.0,0.0001696]
[1742819776136,0.539911,87532.0,87531.0,0.0001696]
[1742819776344,1.848999,87532.0,87531.0,0.0001696]
[1742819776544,1.390127,87532.0,87531.0,0.0001696]
[1742819776765,1.148472,87532.0,87531.0,0.0001696]
[1742819777356,1.035648,87532.0,87531.0,0.0001696]
[1742819777508,1.14990564,87532.0,87531.0,0.0001696]
[1742819778701,1.14990564,87532.0,87531.0,6e-07]
[1742819778913,1.14990564,87532.0,87518.0,0.10251794]
[1742819778914,0.539938,87522.0,87519.0,0.13284]
[1742819779089,1.156937,87522.0,87519.0,0.13284]
[1742819779295,1.046259,87522.0,87519.0,0.13284]
[1742819779466,1.16051664,87522.0,87512.0,0.13284]
[1742819779673,1.16380375,87522.0,87512.0,0.13284]
[1742819780877,1.13569775,87522.0,87512.0,0.13284]
[1742819781113,1.13569775,87522.0,87521.0,0.0011696]
[1742819781872,1.13569775,87522.0,87521.0,0.0001696]
[1742819782712,1.13669775,87522.0,87521.0,0.0001696]
[1742819783704,1.10075775,87522.0,87521.0,0.0001696]
[1742819784060,0.71518711,87522.0,87521.0,0.0001696]
[1742819784266,0.58101511,87522.0,87521.0,0.0001696]
[1742819786057,0.563123,87522.0,87521.0,0.0001696]
[1742819788326,0.516423,87522.0,87521.0,0.0001696]
[1742819789137,0.5343153,87522.0,87521.0,0.0001696]
[1742819794717,0.516423,87522.0,87521.0,0.0001696]
[1742819798837,0.53431459,87522.0,87521.0,0.0001696]
[1742819799877,0.53465379,87522.0,87521.0,0.0001696]
[1742819800660,0.59895428,87522.0,87521.0,0.0001696]
[1742819801982,0.58106269,87522.0,87521.0,0.0001696]
[1742819802796,1.65127269,87522.0,87521.0,6e-07]
[1742819803155,0.72340354,87522.0,87521.0,6e-07]
[1742819803990,0.72240354,87522.0,87521.0,6e-07]
[1742819804735,0.70886269,87522.0,87521.0,6e-07]
[1742819804940,0.62766269,87522.0,87521.0,6e-07]
[1742819805140,0.58125554,87522.0,87521.0,6e-07]
[1742819806741,0.23465554,87522.0,87521.0,6e-07]
[1742819807589,0.53465554,87522.0,87521.0,6e-07]
[1742819808872,0.569972,87510.0,87509.0,0.13288]
[1742819809070,0.3,87503.0,87501.0,0.772448]
[1742819809291,0.325,87503.0,87502.0,0.24713764]
[1742819809648,0.33802118,87503.0,87502.0,0.24713764]
[1742819810051,0.57805453,87503.0,87502.0,0.24713764]
[1742819811308,0.57805453,87503.0,87502.0,0.27001001]